[Event "Titled Tuesday Blitz November 15 Late 2022"]
[White "Prydun, Andriy"]
[Black "Yanchenko, Roman"]
[WhiteFideId "14145898"]
[BlackFideId "4137329"]
[WhiteElo "2163"]
[BlackElo "2489"]
[Result "0-1"]
[Round "02"]
[TimeControl "180+1"]
[Date "2022.11.16"]
[WhiteClock "0:00:06"]
[BlackClock "0:00:33"]

1. d4 {[%clk 0:03:00]}  d5 {[%clk 0:02:52]} 2. Nc3 {[%clk 0:03:00]}  Bf5 {[%clk 0:02:51]} 3. Bf4 {[%clk 0:03:01]}  e6 {[%clk 0:02:51]} 4. e3 {[%clk 0:02:58]}  Bd6 {[%clk 0:02:51]} 5. Bxd6 {[%clk 0:02:49]}  cxd6 {[%clk 0:02:51]} 6. g4 {[%clk 0:02:40]}  Be4 {[%clk 0:02:49]} 7. f3 {[%clk 0:02:37]}  Qh4+ {[%clk 0:02:48]} 8. Kd2 {[%clk 0:02:37]}  Bg6 {[%clk 0:02:48]} 9. Qe1 {[%clk 0:02:37]}  Qxe1+ {[%clk 0:02:44]} 10. Rxe1 {[%clk 0:02:36]}  h5 {[%clk 0:02:39]} 11. g5 {[%clk 0:02:33]}  h4 {[%clk 0:02:40]} 12. Bd3 {[%clk 0:02:31]}  Bxd3 {[%clk 0:02:37]} 13. cxd3 {[%clk 0:02:28]}  Nc6 {[%clk 0:02:37]} 14. f4 {[%clk 0:02:23]}  Nge7 {[%clk 0:02:36]} 15. Nf3 {[%clk 0:02:19]}  Nf5 {[%clk 0:02:27]} 16. Rc1 {[%clk 0:02:13]}  Kd7 {[%clk 0:02:25]} 17. Nb1 {[%clk 0:01:32]}  Rac8 {[%clk 0:02:23]} 18. Rc3 {[%clk 0:01:32]}  Nb4 {[%clk 0:02:09]} 19. a3 {[%clk 0:01:25]}  Rxc3 {[%clk 0:02:07]} 20. bxc3 {[%clk 0:01:12]}  Nc6 {[%clk 0:02:07]} 21. a4 {[%clk 0:01:11]}  Rb8 {[%clk 0:02:03]} 22. Na3 {[%clk 0:01:10]}  b6 {[%clk 0:02:01]} 23. Nc2 {[%clk 0:01:08]}  b5 {[%clk 0:01:58]} 24. axb5 {[%clk 0:00:46]}  Rxb5 {[%clk 0:01:59]} 25. Ra1 {[%clk 0:00:45]}  Rb2 {[%clk 0:01:58]} 26. Kc1 {[%clk 0:00:43]}  Rb3 {[%clk 0:01:57]} 27. Kd2 {[%clk 0:00:43]}  Kc7 {[%clk 0:01:56]} 28. Ra2 {[%clk 0:00:42]}  Rb1 {[%clk 0:01:55]} 29. Nce1 {[%clk 0:00:41]}  a5 {[%clk 0:01:52]} 30. h3 {[%clk 0:00:40]}  Kb6 {[%clk 0:01:24]} 31. Kc2 {[%clk 0:00:40]}  Rb5 {[%clk 0:01:24]} 32. Kd2 {[%clk 0:00:40]}  Rb1 {[%clk 0:01:17]} 33. Kc2 {[%clk 0:00:40]}  Rb5 {[%clk 0:01:14]} 34. Ng2 {[%clk 0:00:39]}  Ka6 {[%clk 0:01:05]} 35. Ngxh4 {[%clk 0:00:37]}  Nxe3+ {[%clk 0:01:04]} 36. Kd2 {[%clk 0:00:36]}  Nf1+ {[%clk 0:00:57]} 37. Ke2 {[%clk 0:00:34]}  Ng3+ {[%clk 0:00:57]} 38. Kf2 {[%clk 0:00:34]}  Nh5 {[%clk 0:00:57]} 39. Ng2 {[%clk 0:00:31]}  Rb3 {[%clk 0:00:57]} 40. Rc2 {[%clk 0:00:28]}  a4 {[%clk 0:00:56]} 41. Ke2 {[%clk 0:00:28]}  a3 {[%clk 0:00:56]} 42. Kd2 {[%clk 0:00:27]}  Ka5 {[%clk 0:00:54]} 43. Ra2 {[%clk 0:00:26]}  Ka4 {[%clk 0:00:54]} 44. Kc2 {[%clk 0:00:26]}  Rb8 {[%clk 0:00:53]} 45. Nd2 {[%clk 0:00:26]}  Rc8 {[%clk 0:00:47]} 46. Kd1 {[%clk 0:00:25]}  g6 {[%clk 0:00:36]} 47. Nb1 {[%clk 0:00:23]}  Kb3 {[%clk 0:00:37]} 48. Rxa3+ {[%clk 0:00:13]}  Kb2 {[%clk 0:00:37]} 49. Kd2 {[%clk 0:00:08]}  Nxd4 {[%clk 0:00:32]} 50. cxd4 {[%clk 0:00:06]}  Rc2+ {[%clk 0:00:32]} 51. Ke3 {[%clk 0:00:06]}  Rxg2 {[%clk 0:00:33]} 0-1


[Site "https://www.chess.com"]

[Event "Titled Tuesday Blitz November 15 Late 2022"]
[White "Radovanovic, Dusan"]
[Black "Steenbekkers, Franck"]
[WhiteFideId "926868"]
[BlackFideId "1004220"]
[WhiteElo "2341"]
[BlackElo "2031"]
[Result "1-0"]
[Round "02"]
[TimeControl "180+1"]
[Date "2022.11.16"]
[WhiteClock "0:01:26"]
[BlackClock "0:01:25"]

1. e4 {[%clk 0:03:00]}  e6 {[%clk 0:02:55]} 2. d4 {[%clk 0:02:59]}  d5 {[%clk 0:02:50]} 3. Nc3 {[%clk 0:02:59]}  Bb4 {[%clk 0:02:49]} 4. e5 {[%clk 0:02:58]}  c5 {[%clk 0:02:48]} 5. a3 {[%clk 0:02:58]}  Bxc3+ {[%clk 0:02:48]} 6. bxc3 {[%clk 0:02:59]}  Ne7 {[%clk 0:02:44]} 7. h4 {[%clk 0:02:59]}  Qc7 {[%clk 0:02:42]} 8. h5 {[%clk 0:02:56]}  h6 {[%clk 0:02:40]} 9. Nf3 {[%clk 0:02:50]}  b5 {[%clk 0:02:33]} 10. Bxb5+ {[%clk 0:02:47]}  Bd7 {[%clk 0:02:33]} 11. Bd3 {[%clk 0:02:43]}  Nbc6 {[%clk 0:02:31]} 12. O-O {[%clk 0:02:35]}  O-O {[%clk 0:02:28]} 13. Bd2 {[%clk 0:02:11]}  f6 {[%clk 0:02:26]} 14. Re1 {[%clk 0:01:59]}  c4 {[%clk 0:02:13]} 15. Bf1 {[%clk 0:01:57]}  Be8 {[%clk 0:02:11]} 16. exf6 {[%clk 0:01:54]}  Rxf6 {[%clk 0:02:09]} 17. Ne5 {[%clk 0:01:53]}  Nxe5 {[%clk 0:02:03]} 18. dxe5 {[%clk 0:01:53]}  Rf5 {[%clk 0:02:01]} 19. f4 {[%clk 0:01:38]}  Rxh5 {[%clk 0:01:40]} 20. Be3 {[%clk 0:01:33]}  Nf5 {[%clk 0:01:38]} 21. Bf2 {[%clk 0:01:33]}  Ne7 {[%clk 0:01:25]} 22. g4 {[%clk 0:01:26]} 1-0


[Site "https://www.chess.com"]

[Event "Titled Tuesday Blitz November 15 Late 2022"]
[White "Rasulov, Vugar"]
[Black "Al-Tarboush, Ward"]
[WhiteFideId "13402390"]
[BlackFideId "7601450"]
[WhiteElo "2509"]
[BlackElo "2273"]
[Result "1-0"]
[Round "02"]
[TimeControl "180+1"]
[Date "2022.11.16"]
[WhiteClock "0:00:09"]
[BlackClock "0:00:02"]

1. e4 {[%clk 0:02:55]}  e6 {[%clk 0:02:58]} 2. d4 {[%clk 0:02:55]}  d5 {[%clk 0:02:58]} 3. e5 {[%clk 0:02:55]}  c5 {[%clk 0:02:58]} 4. c3 {[%clk 0:02:56]}  Nc6 {[%clk 0:02:59]} 5. Nf3 {[%clk 0:02:57]}  Qb6 {[%clk 0:02:59]} 6. Na3 {[%clk 0:02:56]}  cxd4 {[%clk 0:02:58]} 7. cxd4 {[%clk 0:02:57]}  Bb4+ {[%clk 0:02:56]} 8. Bd2 {[%clk 0:02:57]}  Nge7 {[%clk 0:02:55]} 9. Nc2 {[%clk 0:02:56]}  Bxd2+ {[%clk 0:02:54]} 10. Qxd2 {[%clk 0:02:57]}  Qxb2 {[%clk 0:02:53]} 11. Bd3 {[%clk 0:02:56]}  h6 {[%clk 0:02:27]} 12. O-O {[%clk 0:02:55]}  Qb6 {[%clk 0:02:26]} 13. Rab1 {[%clk 0:02:50]}  Qa5 {[%clk 0:02:25]} 14. Qf4 {[%clk 0:02:49]}  O-O {[%clk 0:02:24]} 15. Ne3 {[%clk 0:02:44]}  Bd7 {[%clk 0:02:18]} 16. Rxb7 {[%clk 0:02:40]}  Bc8 {[%clk 0:02:12]} 17. Rb3 {[%clk 0:02:28]}  Qxa2 {[%clk 0:02:04]} 18. Rfb1 {[%clk 0:02:23]}  Ba6 {[%clk 0:01:53]} 19. Bxa6 {[%clk 0:02:03]}  Qxa6 {[%clk 0:01:51]} 20. h4 {[%clk 0:01:56]}  Rab8 {[%clk 0:01:45]} 21. h5 {[%clk 0:01:37]}  Rxb3 {[%clk 0:01:42]} 22. Rxb3 {[%clk 0:01:38]}  Rb8 {[%clk 0:01:38]} 23. Rxb8+ {[%clk 0:01:38]}  Nxb8 {[%clk 0:01:39]} 24. g4 {[%clk 0:01:38]}  Qd3 {[%clk 0:01:35]} 25. g5 {[%clk 0:01:33]}  Qb1+ {[%clk 0:01:06]} 26. Kg2 {[%clk 0:01:22]}  Qe4 {[%clk 0:01:05]} 27. Qg3 {[%clk 0:01:22]}  hxg5 {[%clk 0:01:04]} 28. Qxg5 {[%clk 0:01:22]}  Nbc6 {[%clk 0:00:59]} 29. Kg3 {[%clk 0:01:06]}  Nf5+ {[%clk 0:00:38]} 30. Nxf5 {[%clk 0:01:07]}  Qxf5 {[%clk 0:00:39]} 31. Qc1 {[%clk 0:00:53]}  Nb4 {[%clk 0:00:27]} 32. Ng5 {[%clk 0:00:27]}  Nc2 {[%clk 0:00:26]} 33. f4 {[%clk 0:00:25]}  Qd3+ {[%clk 0:00:25]} 34. Kh4 {[%clk 0:00:19]}  Qe3 {[%clk 0:00:13]} 35. Qf1 {[%clk 0:00:12]}  Qe1+ {[%clk 0:00:12]} 36. Qxe1 {[%clk 0:00:12]}  Nxe1 {[%clk 0:00:13]} 37. f5 {[%clk 0:00:10]}  a5 {[%clk 0:00:04]} 38. f6 {[%clk 0:00:07]}  gxf6 {[%clk 0:00:03]} 39. exf6 {[%clk 0:00:08]}  a4 {[%clk 0:00:03]} 40. h6 {[%clk 0:00:09]}  a3 {[%clk 0:00:03]} 41. h7+ {[%clk 0:00:09]}  Kh8 {[%clk 0:00:03]} 42. Kh5 {[%clk 0:00:10]}  Ng2 {[%clk 0:00:02]} 43. Kh6 {[%clk 0:00:09]} 1-0


[Site "https://www.chess.com"]

[Event "Titled Tuesday Blitz November 15 Late 2022"]
[White "Remolar Gallen, Jose"]
[Black "Arbunic Castro, Giovanna"]
[WhiteFideId "2215187"]
[BlackFideId "3400549"]
[WhiteElo "2252"]
[BlackElo "1925"]
[Result "0-1"]
[Round "02"]
[TimeControl "180+1"]
[Date "2022.11.16"]
[WhiteClock "0:00:24"]
[BlackClock "0:00:09"]

1. d4 {[%clk 0:03:00]}  Nf6 {[%clk 0:02:58]} 2. Nf3 {[%clk 0:02:53]}  g6 {[%clk 0:02:57]} 3. c4 {[%clk 0:02:52]}  Bg7 {[%clk 0:02:56]} 4. Nc3 {[%clk 0:02:52]}  O-O {[%clk 0:02:55]} 5. g3 {[%clk 0:02:51]}  d6 {[%clk 0:02:54]} 6. Bg2 {[%clk 0:02:50]}  c5 {[%clk 0:02:54]} 7. O-O {[%clk 0:02:48]}  Nc6 {[%clk 0:02:40]} 8. h3 {[%clk 0:02:47]}  Bd7 {[%clk 0:02:35]} 9. e4 {[%clk 0:02:42]}  cxd4 {[%clk 0:02:30]} 10. Nxd4 {[%clk 0:02:41]}  Qb6 {[%clk 0:02:29]} 11. Nb3 {[%clk 0:02:38]}  Ne5 {[%clk 0:02:22]} 12. Be3 {[%clk 0:02:34]}  Qa6 {[%clk 0:01:54]} 13. c5 {[%clk 0:02:29]}  Nc4 {[%clk 0:01:51]} 14. Bc1 {[%clk 0:02:27]}  Rac8 {[%clk 0:01:32]} 15. cxd6 {[%clk 0:02:25]}  exd6 {[%clk 0:01:31]} 16. Re1 {[%clk 0:02:25]}  b5 {[%clk 0:01:11]} 17. Bf1 {[%clk 0:02:19]}  Rfe8 {[%clk 0:01:04]} 18. g4 {[%clk 0:02:01]}  Bc6 {[%clk 0:00:48]} 19. f3 {[%clk 0:01:42]}  Qb6+ {[%clk 0:00:42]} 20. Kg2 {[%clk 0:01:40]}  a5 {[%clk 0:00:39]} 21. Bxc4 {[%clk 0:01:38]}  bxc4 {[%clk 0:00:34]} 22. Be3 {[%clk 0:01:39]}  Qb4 {[%clk 0:00:32]} 23. Nd4 {[%clk 0:01:34]}  Ba8 {[%clk 0:00:25]} 24. Re2 {[%clk 0:01:27]}  d5 {[%clk 0:00:18]} 25. exd5 {[%clk 0:01:15]}  Nxd5 {[%clk 0:00:16]} 26. Nxd5 {[%clk 0:01:16]}  Bxd5 {[%clk 0:00:15]} 27. Nc2 {[%clk 0:01:16]}  Qb7 {[%clk 0:00:15]} 28. Rd2 {[%clk 0:00:41]}  Rcd8 {[%clk 0:00:12]} 29. Bf2 {[%clk 0:00:28]}  Bxb2 {[%clk 0:00:11]} 30. Rb1 {[%clk 0:00:28]}  c3 {[%clk 0:00:11]} 31. Re2 {[%clk 0:00:24]}  Bxf3+ {[%clk 0:00:09]} 0-1


[Site "https://www.chess.com"]

[Event "Titled Tuesday Blitz November 15 Late 2022"]
[White "Roman, Rodrigo"]
[Black "Hristodoulou, Panagiotis"]
[WhiteFideId "3701220"]
[BlackFideId "4214340"]
[WhiteElo "1995"]
[BlackElo "2272"]
[Result "0-1"]
[Round "02"]
[TimeControl "180+1"]
[Date "2022.11.16"]
[WhiteClock "0:00:02"]
[BlackClock "0:00:09"]

1. e4 {[%clk 0:02:57]}  e5 {[%clk 0:02:57]} 2. Nf3 {[%clk 0:02:54]}  Nc6 {[%clk 0:02:57]} 3. Bb5 {[%clk 0:02:53]}  g6 {[%clk 0:02:56]} 4. Bxc6 {[%clk 0:02:52]}  dxc6 {[%clk 0:02:56]} 5. O-O {[%clk 0:02:49]}  Bg7 {[%clk 0:02:54]} 6. d3 {[%clk 0:02:49]}  Ne7 {[%clk 0:02:54]} 7. Nbd2 {[%clk 0:02:45]}  c5 {[%clk 0:02:40]} 8. a4 {[%clk 0:02:35]}  Be6 {[%clk 0:02:34]} 9. a5 {[%clk 0:02:33]}  Nc6 {[%clk 0:02:26]} 10. b3 {[%clk 0:02:25]}  g5 {[%clk 0:02:14]} 11. Nc4 {[%clk 0:02:12]}  g4 {[%clk 0:02:14]} 12. Ng5 {[%clk 0:02:07]}  Bxc4 {[%clk 0:02:11]} 13. bxc4 {[%clk 0:02:08]}  h6 {[%clk 0:02:11]} 14. Nxf7 {[%clk 0:02:02]}  Kxf7 {[%clk 0:02:10]} 15. Qxg4 {[%clk 0:02:00]}  Rf8 {[%clk 0:02:07]} 16. Be3 {[%clk 0:01:58]}  Nd4 {[%clk 0:02:00]} 17. c3 {[%clk 0:01:53]}  Nc2 {[%clk 0:01:59]} 18. Rab1 {[%clk 0:01:43]}  b6 {[%clk 0:01:38]} 19. Qh5+ {[%clk 0:01:35]}  Kg8 {[%clk 0:01:37]} 20. Bxh6 {[%clk 0:01:34]}  Bxh6 {[%clk 0:01:36]} 21. Qxh6 {[%clk 0:01:35]}  Rf7 {[%clk 0:00:59]} 22. Qd2 {[%clk 0:01:29]}  Na3 {[%clk 0:00:59]} 23. Rbd1 {[%clk 0:01:25]}  b5 {[%clk 0:00:58]} 24. Qb2 {[%clk 0:01:19]}  b4 {[%clk 0:00:58]} 25. cxb4 {[%clk 0:01:19]}  cxb4 {[%clk 0:00:56]} 26. Qxe5 {[%clk 0:01:17]}  Qd6 {[%clk 0:00:53]} 27. Qg5+ {[%clk 0:00:58]}  Rg7 {[%clk 0:00:53]} 28. Qh5 {[%clk 0:00:56]}  Nc2 {[%clk 0:00:38]} 29. Qd5+ {[%clk 0:00:27]}  Qxd5 {[%clk 0:00:38]} 30. cxd5 {[%clk 0:00:27]}  b3 {[%clk 0:00:36]} 31. Rb1 {[%clk 0:00:26]}  Rb8 {[%clk 0:00:28]} 32. Rb2 {[%clk 0:00:26]}  Rg6 {[%clk 0:00:27]} 33. Rfb1 {[%clk 0:00:20]}  Nd4 {[%clk 0:00:21]} 34. f4 {[%clk 0:00:15]}  Ra6 {[%clk 0:00:19]} 35. Ra1 {[%clk 0:00:15]}  Rb5 {[%clk 0:00:20]} 36. Ra4 {[%clk 0:00:14]}  Raxa5 {[%clk 0:00:11]} 37. Rxd4 {[%clk 0:00:08]}  Ra2 {[%clk 0:00:10]} 38. Rb1 {[%clk 0:00:05]}  b2 {[%clk 0:00:10]} 39. Rc4 {[%clk 0:00:02]}  Ra1 {[%clk 0:00:09]} 0-1


[Site "https://www.chess.com"]

[Event "Titled Tuesday Blitz November 15 Late 2022"]
[White "Santos Flores, Alberto"]
[Black "Andronescu, Madalin"]
[WhiteFideId "3601234"]
[BlackFideId "1217275"]
[WhiteElo "2235"]
[BlackElo "1946"]
[Result "1-0"]
[Round "02"]
[TimeControl "180+1"]
[Date "2022.11.16"]
[WhiteClock "0:00:15"]
[BlackClock "0:00:05"]

1. e4 {[%clk 0:02:50]}  c5 {[%clk 0:02:59]} 2. Nf3 {[%clk 0:02:50]}  d6 {[%clk 0:02:59]} 3. d4 {[%clk 0:02:50]}  cxd4 {[%clk 0:02:59]} 4. Nxd4 {[%clk 0:02:51]}  Nf6 {[%clk 0:02:59]} 5. Nc3 {[%clk 0:02:52]}  a6 {[%clk 0:02:58]} 6. h3 {[%clk 0:02:52]}  e5 {[%clk 0:02:55]} 7. Nb3 {[%clk 0:02:51]}  Be7 {[%clk 0:02:55]} 8. g4 {[%clk 0:02:52]}  O-O {[%clk 0:02:54]} 9. Bg2 {[%clk 0:02:52]}  Be6 {[%clk 0:02:52]} 10. O-O {[%clk 0:02:51]}  b5 {[%clk 0:02:46]} 11. Nd5 {[%clk 0:02:51]}  Bxd5 {[%clk 0:02:44]} 12. exd5 {[%clk 0:02:52]}  Nbd7 {[%clk 0:02:43]} 13. f4 {[%clk 0:02:52]}  exf4 {[%clk 0:02:32]} 14. Bxf4 {[%clk 0:02:52]}  Nb6 {[%clk 0:02:32]} 15. Nd4 {[%clk 0:02:45]}  Rc8 {[%clk 0:02:28]} 16. Nc6 {[%clk 0:02:43]}  Qd7 {[%clk 0:02:22]} 17. Qd4 {[%clk 0:02:31]}  Nbxd5 {[%clk 0:02:13]} 18. Nxe7+ {[%clk 0:02:31]}  Nxe7 {[%clk 0:02:05]} 19. Qxd6 {[%clk 0:02:30]}  Qa7+ {[%clk 0:01:42]} 20. Kh1 {[%clk 0:02:29]}  Ng6 {[%clk 0:01:42]} 21. Bg5 {[%clk 0:02:01]}  Rxc2 {[%clk 0:01:39]} 22. Bxf6 {[%clk 0:02:00]}  gxf6 {[%clk 0:01:39]} 23. Qxf6 {[%clk 0:02:00]}  Qe3 {[%clk 0:01:27]} 24. Rf3 {[%clk 0:00:47]}  Rc1+ {[%clk 0:00:45]} 25. Rxc1 {[%clk 0:00:47]}  Qxc1+ {[%clk 0:00:45]} 26. Rf1 {[%clk 0:00:46]}  Qe3 {[%clk 0:00:41]} 27. h4 {[%clk 0:00:40]}  Qg3 {[%clk 0:00:40]} 28. h5 {[%clk 0:00:40]}  Nh4 {[%clk 0:00:37]} 29. Qf2 {[%clk 0:00:25]}  Qxg4 {[%clk 0:00:28]} 30. Rg1 {[%clk 0:00:25]}  Kh8 {[%clk 0:00:26]} 31. Qf6+ {[%clk 0:00:22]}  Qg7 {[%clk 0:00:24]} 32. Qxg7+ {[%clk 0:00:20]}  Kxg7 {[%clk 0:00:23]} 33. Bb7+ {[%clk 0:00:20]}  Kh6 {[%clk 0:00:21]} 34. Bxa6 {[%clk 0:00:21]}  Kxh5 {[%clk 0:00:21]} 35. Bxb5 {[%clk 0:00:21]}  f5 {[%clk 0:00:21]} 36. Be2+ {[%clk 0:00:20]}  Kh6 {[%clk 0:00:21]} 37. a4 {[%clk 0:00:19]}  f4 {[%clk 0:00:21]} 38. Rf1 {[%clk 0:00:18]}  f3 {[%clk 0:00:21]} 39. Bd1 {[%clk 0:00:19]}  Kg5 {[%clk 0:00:20]} 40. b4 {[%clk 0:00:18]}  Kf4 {[%clk 0:00:19]} 41. a5 {[%clk 0:00:18]}  Kg3 {[%clk 0:00:19]} 42. a6 {[%clk 0:00:17]}  f2 {[%clk 0:00:13]} 43. b5 {[%clk 0:00:15]}  Re8 {[%clk 0:00:12]} 44. a7 {[%clk 0:00:15]}  Re1 {[%clk 0:00:11]} 45. Be2 {[%clk 0:00:15]}  Rxe2 {[%clk 0:00:06]} 46. a8=Q {[%clk 0:00:15]}  Re1 {[%clk 0:00:06]} 47. Qg8+ {[%clk 0:00:15]}  Kf3 {[%clk 0:00:06]} 48. Qf7+ {[%clk 0:00:15]}  Ke2 {[%clk 0:00:05]} 49. Qxf2+ {[%clk 0:00:15]}  Kd1 {[%clk 0:00:05]} 50. Rxe1# {[%clk 0:00:15]} 1-0


[Site "https://www.chess.com"]

[Event "Titled Tuesday Blitz November 15 Late 2022"]
[White "Silvestre, Christian"]
[Black "Milchev, Nikolay"]
[WhiteFideId "30956269"]
[BlackFideId "2906090"]
[WhiteElo "2328"]
[BlackElo "2449"]
[Result "0-1"]
[Round "02"]
[TimeControl "180+1"]
[Date "2022.11.16"]
[WhiteClock "0:00:08"]
[BlackClock "0:01:04"]

1. e4 {[%clk 0:02:52]}  Nf6 {[%clk 0:03:00]} 2. e5 {[%clk 0:02:52]}  Nd5 {[%clk 0:03:01]} 3. Nc3 {[%clk 0:02:51]}  Nb6 {[%clk 0:03:01]} 4. Nf3 {[%clk 0:02:50]}  d6 {[%clk 0:03:02]} 5. g3 {[%clk 0:02:50]}  g6 {[%clk 0:02:58]} 6. Bg2 {[%clk 0:02:49]}  Bg7 {[%clk 0:02:58]} 7. exd6 {[%clk 0:02:48]}  cxd6 {[%clk 0:02:58]} 8. O-O {[%clk 0:02:44]}  Nc6 {[%clk 0:02:58]} 9. Re1 {[%clk 0:02:39]}  O-O {[%clk 0:02:58]} 10. h3 {[%clk 0:02:39]}  e5 {[%clk 0:02:54]} 11. d3 {[%clk 0:02:38]}  h6 {[%clk 0:02:54]} 12. Be3 {[%clk 0:02:33]}  d5 {[%clk 0:02:45]} 13. Bc5 {[%clk 0:02:29]}  Re8 {[%clk 0:02:45]} 14. Bxb6 {[%clk 0:02:20]}  axb6 {[%clk 0:02:45]} 15. Nd2 {[%clk 0:02:08]}  Be6 {[%clk 0:02:43]} 16. Kh2 {[%clk 0:02:05]}  Qd7 {[%clk 0:02:27]} 17. Nb3 {[%clk 0:02:01]}  Rad8 {[%clk 0:02:25]} 18. a4 {[%clk 0:01:55]}  f5 {[%clk 0:02:21]} 19. a5 {[%clk 0:01:54]}  bxa5 {[%clk 0:02:19]} 20. Nxa5 {[%clk 0:01:49]}  e4 {[%clk 0:02:19]} 21. Nb3 {[%clk 0:01:39]}  b6 {[%clk 0:02:07]} 22. dxe4 {[%clk 0:01:29]}  dxe4 {[%clk 0:02:06]} 23. Qxd7 {[%clk 0:01:24]}  Rxd7 {[%clk 0:02:07]} 24. Ra6 {[%clk 0:01:23]}  Rb8 {[%clk 0:02:05]} 25. Na4 {[%clk 0:01:03]}  Rdb7 {[%clk 0:02:02]} 26. Nbc5 {[%clk 0:00:47]}  bxc5 {[%clk 0:02:00]} 27. Nxc5 {[%clk 0:00:48]}  Bd5 {[%clk 0:01:48]} 28. Nxb7 {[%clk 0:00:36]}  Rxb7 {[%clk 0:01:48]} 29. c4 {[%clk 0:00:37]}  Nb4 {[%clk 0:01:48]} 30. Ra8+ {[%clk 0:00:35]}  Kf7 {[%clk 0:01:46]} 31. cxd5 {[%clk 0:00:35]}  Nxd5 {[%clk 0:01:47]} 32. Bf1 {[%clk 0:00:31]}  Nb6 {[%clk 0:01:42]} 33. Ra2 {[%clk 0:00:29]}  Rc7 {[%clk 0:01:41]} 34. Bb5 {[%clk 0:00:27]}  Rc2 {[%clk 0:01:40]} 35. Kg2 {[%clk 0:00:27]}  Bd4 {[%clk 0:01:38]} 36. Re2 {[%clk 0:00:26]}  Rc5 {[%clk 0:01:33]} 37. Ba4 {[%clk 0:00:21]}  g5 {[%clk 0:01:30]} 38. Bb3+ {[%clk 0:00:20]}  Kf6 {[%clk 0:01:25]} 39. Rc2 {[%clk 0:00:20]}  Rb5 {[%clk 0:01:23]} 40. Bc4 {[%clk 0:00:20]}  Nxc4 {[%clk 0:01:20]} 41. Rxc4 {[%clk 0:00:20]}  Ke5 {[%clk 0:01:21]} 42. b4 {[%clk 0:00:20]}  Kd5 {[%clk 0:01:18]} 43. Rac2 {[%clk 0:00:20]}  f4 {[%clk 0:01:17]} 44. gxf4 {[%clk 0:00:20]}  gxf4 {[%clk 0:01:18]} 45. Kf1 {[%clk 0:00:20]}  f3 {[%clk 0:01:18]} 46. Ke1 {[%clk 0:00:20]}  Rb6 {[%clk 0:01:14]} 47. Rc8 {[%clk 0:00:16]}  Rxb4 {[%clk 0:01:14]} 48. Rd8+ {[%clk 0:00:16]}  Ke5 {[%clk 0:01:14]} 49. Re8+ {[%clk 0:00:16]}  Kf5 {[%clk 0:01:14]} 50. Rf8+ {[%clk 0:00:17]}  Kg5 {[%clk 0:01:14]} 51. Rc6 {[%clk 0:00:13]}  Rb1+ {[%clk 0:01:09]} 52. Kd2 {[%clk 0:00:13]}  Bxf2 {[%clk 0:01:09]} 53. Rg8+ {[%clk 0:00:12]}  Kf4 {[%clk 0:01:09]} 54. Rf8+ {[%clk 0:00:09]}  Kg3 {[%clk 0:01:09]} 55. Rg6+ {[%clk 0:00:08]}  Kh2 {[%clk 0:01:09]} 56. Rh8 {[%clk 0:00:08]}  Rb2+ {[%clk 0:01:07]} 57. Kc1 {[%clk 0:00:08]}  Re2 {[%clk 0:01:04]} 0-1


[Site "https://www.chess.com"]

[Event "Titled Tuesday Blitz November 15 Late 2022"]
[White "Sivakumar, Shaashwath"]
[Black "Gurevich, Dmitry"]
[WhiteFideId "30912156"]
[BlackFideId "2000407"]
[WhiteElo "2137"]
[BlackElo "2506"]
[Result "0-1"]
[Round "02"]
[TimeControl "180+1"]
[Date "2022.11.16"]
[WhiteClock "0:00:02"]
[BlackClock "0:00:10"]

1. d4 {[%clk 0:03:00]}  Nf6 {[%clk 0:02:59]} 2. c4 {[%clk 0:02:57]}  a6 {[%clk 0:02:58]} 3. Nc3 {[%clk 0:02:55]}  c5 {[%clk 0:02:58]} 4. d5 {[%clk 0:02:55]}  b5 {[%clk 0:02:57]} 5. cxb5 {[%clk 0:02:53]}  axb5 {[%clk 0:02:57]} 6. Nxb5 {[%clk 0:02:52]}  Qa5+ {[%clk 0:02:57]} 7. Nc3 {[%clk 0:02:50]}  Bb7 {[%clk 0:02:57]} 8. Bd2 {[%clk 0:02:50]}  Qb6 {[%clk 0:02:56]} 9. e4 {[%clk 0:02:49]}  e6 {[%clk 0:02:54]} 10. Bc4 {[%clk 0:02:39]}  Nxe4 {[%clk 0:02:50]} 11. Nxe4 {[%clk 0:02:15]}  exd5 {[%clk 0:02:49]} 12. Bb3 {[%clk 0:01:59]}  dxe4 {[%clk 0:02:43]} 13. Qh5 {[%clk 0:01:55]}  Qg6 {[%clk 0:02:30]} 14. Qe5+ {[%clk 0:01:44]}  Be7 {[%clk 0:02:25]} 15. Ne2 {[%clk 0:01:41]}  Nc6 {[%clk 0:02:10]} 16. Qc7 {[%clk 0:01:31]}  Rb8 {[%clk 0:02:09]} 17. Nf4 {[%clk 0:01:28]}  Qd6 {[%clk 0:01:59]} 18. Nd5 {[%clk 0:01:12]}  O-O {[%clk 0:01:56]} 19. Bf4 {[%clk 0:00:56]}  Qxc7 {[%clk 0:01:54]} 20. Bxc7 {[%clk 0:00:55]}  Ra8 {[%clk 0:01:48]} 21. Nxe7+ {[%clk 0:00:50]}  Nxe7 {[%clk 0:01:46]} 22. Bd6 {[%clk 0:00:51]}  Rfe8 {[%clk 0:01:44]} 23. Bxc5 {[%clk 0:00:40]}  Ba6 {[%clk 0:01:44]} 24. Kd2 {[%clk 0:00:36]}  Nc6 {[%clk 0:01:37]} 25. Ke3 {[%clk 0:00:35]}  Ne5 {[%clk 0:01:31]} 26. Bd4 {[%clk 0:00:22]}  Nc6 {[%clk 0:01:25]} 27. Rac1 {[%clk 0:00:18]}  Nxd4 {[%clk 0:01:18]} 28. Kxd4 {[%clk 0:00:19]}  Bd3 {[%clk 0:01:16]} 29. Rhe1 {[%clk 0:00:19]}  Kf8 {[%clk 0:01:13]} 30. Bd5 {[%clk 0:00:18]}  Ra4+ {[%clk 0:01:11]} 31. Kc5 {[%clk 0:00:15]}  f5 {[%clk 0:00:53]} 32. Bb3 {[%clk 0:00:14]}  Ra6 {[%clk 0:00:41]} 33. Kd4 {[%clk 0:00:14]}  Rd6+ {[%clk 0:00:35]} 34. Ke3 {[%clk 0:00:13]}  g5 {[%clk 0:00:33]} 35. g3 {[%clk 0:00:14]}  Kg7 {[%clk 0:00:31]} 36. Rc5 {[%clk 0:00:14]}  Kf6 {[%clk 0:00:31]} 37. Rec1 {[%clk 0:00:14]}  Ba6 {[%clk 0:00:26]} 38. Ra5 {[%clk 0:00:14]}  Rb8 {[%clk 0:00:17]} 39. Rcc5 {[%clk 0:00:13]}  Rd3+ {[%clk 0:00:16]} 40. Ke2 {[%clk 0:00:10]}  Rdxb3+ {[%clk 0:00:16]} 41. Rxa6+ {[%clk 0:00:08]}  R3b6 {[%clk 0:00:16]} 42. Rxb6+ {[%clk 0:00:06]}  Rxb6 {[%clk 0:00:16]} 43. b3 {[%clk 0:00:06]}  Ke6 {[%clk 0:00:15]} 44. Rc3 {[%clk 0:00:05]}  d5 {[%clk 0:00:15]} 45. a3 {[%clk 0:00:05]}  Ke5 {[%clk 0:00:16]} 46. b4 {[%clk 0:00:05]}  Kd4 {[%clk 0:00:15]} 47. Rb3 {[%clk 0:00:05]}  Ra6 {[%clk 0:00:15]} 48. b5 {[%clk 0:00:04]}  Ra8 {[%clk 0:00:14]} 49. Kd2 {[%clk 0:00:03]}  Kc4 {[%clk 0:00:14]} 50. Rb4+ {[%clk 0:00:03]}  Kc5 {[%clk 0:00:14]} 51. Rb3 {[%clk 0:00:03]}  d4 {[%clk 0:00:14]} 52. b6 {[%clk 0:00:03]}  f4 {[%clk 0:00:11]} 53. b7 {[%clk 0:00:03]}  Rb8 {[%clk 0:00:10]} 54. a4 {[%clk 0:00:03]}  Kc6 {[%clk 0:00:11]} 55. a5 {[%clk 0:00:02]}  Rxb7 {[%clk 0:00:10]} 0-1


[Site "https://www.chess.com"]